bitfinex-derivatives/quotes_SOLF0:USTF0_20241217
["timestamp","ask_amount","ask_price","bid_price","bid_amount"]
[1734439683866,10.28760004,226.64,226.54,2.2074]
[1734439684156,2.2068,226.61,226.54,5.55]
[1734439684353,10.28760004,226.64,226.54,5.55]
[1734439685054,2.44,226.66,226.54,5.55]
[1734439685055,10.28760004,226.61,226.54,5.55]
[1734439685251,10.28760004,226.58,226.54,5.55]
[1734439685459,12.72760004,226.58,226.54,5.55]
[1734439685757,2.2074,226.55,226.54,5.55]
[1734439686552,12.49500004,226.55,226.54,5.55]
[1734439686759,14.93500004,226.55,226.54,5.55]
[1734439687354,2.2079,226.5,226.46,1.4217]
[1734439688056,2.44,226.5,226.42,3.0048]
[1734439688451,2.44,226.5,226.42,8.2748]
[1734439688657,10.28760004,226.49,226.42,5.27]
[1734439689255,10.28760004,226.46,226.42,5.27]
[1734439689558,2.44,226.45,226.42,5.27]
[1734439689757,2.44,226.47,226.42,5.27]
[1734439690057,2.44,226.5,226.42,5.27]
[1734439690262,12.72760004,226.52,226.45,2.2084]
[1734439690860,12.72760004,226.52,226.42,5.27]
[1734439691061,2.2079,226.51,226.43,2.2085]
[1734439691656,2.2077,226.53,226.42,15.55760004]
[1734439691863,4.6477,226.53,226.42,15.55760004]
[1734439692560,15.60956402,226.55,226.42,15.55760004]
[1734439692561,7.52946398,226.55,226.42,15.55760004]
[1734439692757,2.44,226.56,226.45,10.28760004]
[1734439692963,17.92732473,226.56,226.47,2.2081]
[1734439693154,7.63972469,226.56,226.46,2.9914]
[1734439694064,2.2074,226.55,226.46,2.9914]
[1734439695061,2.2074,226.55,226.49,2.208]
[1734439695361,7.63972469,226.56,226.49,2.208]
[1734439695562,2.2075,226.54,226.49,2.208]
[1734439696359,10.28760004,226.59,226.47,10.28760004]
[1734439696565,12.72760004,226.69,226.53,10.28760004]
[1734439696865,2.2063,226.67,226.61,2.2067]
[1734439697067,2.2063,226.67,226.56,2.44]
[1734439697364,2.2063,226.67,226.57,1.5695]
[1734439697559,12.72760004,226.69,226.57,3.0256]
[1734439698163,5.39972807,226.68,226.57,3.0256]
[1734439698467,2.2063,226.67,226.61,2.2069]
[1734439698768,5.39972807,226.68,226.57,3.0256]
[1734439698962,10.28760004,226.66,226.57,3.0256]
[1734439699367,2.2067,226.63,226.57,3.0256]
[1734439699562,10.28760004,226.66,226.57,3.0256]
[1734439701170,2.44,226.65,226.57,3.0256]
[1734439702065,2.2068,226.62,226.57,3.0256]
[1734439702263,2.44,226.65,226.57,5.2328]
[1734439702462,5.39972807,226.68,226.58,2.4]
[1734439702864,5.39972807,226.68,226.61,2.2068]
[1734439703267,2.2062,226.67,226.61,2.2068]
[1734439703763,5.39972807,226.68,226.6,2.2069]
[1734439703977,2.2063,226.66,226.6,2.2069]
[1734439704463,2.2064,226.65,226.6,2.2069]
[1734439705661,2.2064,226.65,226.6,7.3769]
[1734439705972,10.28760004,226.66,226.6,5.17]
[1734439706158,2.2066,226.63,226.6,5.17]
[1734439706871,2.2067,226.62,226.6,5.17]
[1734439707569,2.2068,226.61,226.6,5.17]
[1734439707969,10.28760004,226.66,226.6,5.17]
[1734439708972,5.39972807,226.68,226.6,5.17]
[1734439709373,2.4,226.7,226.63,2.2066]
[1734439710070,2.206,226.69,226.63,2.2066]
[1734439710474,7.77556157,226.7,226.63,2.2066]
[1734439710774,10.28760004,226.68,226.6,5.17]
[1734439711270,2.2064,226.65,226.6,5.17]
[1734439711467,10.28760004,226.68,226.6,5.17]
[1734439711973,2.2068,226.62,226.6,5.17]
[1734439713775,2.2068,226.61,226.6,5.17]
[1734439716078,2.2074,226.55,226.5,5.1381]
[1734439716482,2.2075,226.54,226.5,2.9303]
[1734439716683,2.4,226.6,226.37,5.23168191]
[1734439716684,10.28760004,226.56,226.37,5.23168191]
[1734439716889,10.28760004,226.56,226.33,5.29066767]
[1734439716890,2.4,226.55,226.41,10.28760004]
[1734439717085,2.2079,226.5,226.41,10.28760004]
[1734439717289,2.2079,226.5,226.41,14.67760004]
[1734439717584,10.28760004,226.53,226.41,6.79]
[1734439717985,2.208,226.49,226.44,2.2084]
[1734439718787,2.2082,226.47,226.42,2.2086]
[1734439718986,10.28760004,226.53,226.42,2.2086]
[1734439719289,2.2085,226.44,226.41,4.39]
[1734439719984,2.2086,226.43,226.41,4.39]
[1734439721496,5.32485317,226.55,226.41,4.39]
[1734439721790,5.32485317,226.55,226.43,10.28760004]
[1734439721995,2.2077,226.52,226.48,2.208]
[1734439722191,5.32485317,226.55,226.48,2.208]
[1734439722794,10.28760004,226.56,226.45,2.4]
[1734439722987,2.2074,226.55,226.45,2.4]
[1734439723390,12.68760004,226.59,226.46,10.28760004]
[1734439723595,12.68760004,226.59,226.45,2.4]
[1734439723894,10.28760004,226.56,226.42,2.4]
[1734439724289,2.208,226.49,226.42,2.4]
[1734439724494,2.4,226.53,226.42,2.4]
[1734439724795,2.2081,226.48,226.43,2.2085]
[1734439724995,12.68760004,226.53,226.43,2.2085]
[1734439725194,2.2083,226.45,226.42,2.4]
[1734439725491,2.4,226.53,226.42,2.4]
[1734439725895,2.2081,226.48,226.43,2.2085]
[1734439726397,2.2083,226.46,226.42,2.4]
[1734439726592,2.2083,226.46,226.41,4.39]
[1734439726593,10.28760004,226.51,226.41,4.39]
[1734439727093,2.2084,226.44,226.41,4.39]
[1734439727395,10.28760004,226.51,226.41,4.39]
[1734439727596,2.2084,226.45,226.41,4.39]
[1734439727791,10.28760004,226.51,226.41,4.39]
[1734439728798,2.208,226.48,226.41,4.39]
[1734439728993,10.28760004,226.51,226.41,4.39]
[1734439729797,2.4,226.53,226.41,4.39]
[1734439729798,10.28760004,226.48,226.41,4.39]
[1734439729997,2.4,226.47,226.41,4.39]
[1734439731101,2.2085,226.44,226.41,4.39]
[1734439731500,2.2086,226.42,226.41,4.39]
[1734439733398,7.73398747,226.47,226.41,4.39]
[1734439733600,2.2084,226.45,226.41,4.39]
[1734439733893,12.68760004,226.51,226.41,4.39]
[1734439734093,2.2078,226.51,226.42,2.4]
[1734439734292,12.68760004,226.55,226.42,2.4]
[1734439734897,10.28760004,226.55,226.45,2.2083]
[1734439735196,2.4,226.54,226.42,2.4]
[1734439735394,2.2078,226.51,226.46,2.2082]
[1734439736200,10.28760004,226.55,226.42,2.4]
[1734439736395,10.28760004,226.58,226.44,10.28760004]
[1734439736599,12.68760004,226.58,226.45,2.4]
[1734439736796,12.68760004,226.58,226.49,2.2079]
[1734439737602,2.2076,226.53,226.49,2.2079]
[1734439739498,2.2076,226.53,226.49,7.2279]
[1734439742204,1.4946,226.65,226.49,5.02]
[1734439742205,10.28760004,226.61,226.49,5.02]
[1734439743801,2.207,226.59,226.49,5.02]
[1734439744305,2.207,226.59,226.55,2.2073]
[1734439745800,2.2069,226.6,226.56,2.2072]
[1734439746899,12.68760004,226.64,226.53,3.6469]
[1734439747206,10.28760004,226.61,226.53,3.6469]
[1734439747404,10.28760004,226.61,226.49,5.02]
[1734439747608,10.28760004,226.58,226.49,5.02]
[1734439748500,2.2076,226.54,226.5,2.2078]
[1734439750108,12.68760004,226.58,226.49,5.02]
[1734439750303,2.2079,226.5,226.49,5.02]
[1734439753309,7.61274051,226.61,226.49,5.02]
[1734439753812,2.2071,226.58,226.53,2.2075]
[1734439754005,2.4,226.61,226.49,5.02]
[1734439754408,2.2073,226.56,226.52,2.2076]
[1734439754607,2.2073,226.56,226.49,5.02]
[1734439755114,2.2075,226.55,226.5,2.2078]
[1734439755412,10.28760004,226.6,226.49,5.02]
[1734439756814,10.28760004,226.57,226.49,5.02]
[1734439757015,2.4,226.56,226.49,5.02]
[1734439757414,2.2078,226.51,226.49,5.02]
[1734439758813,2.4,226.56,226.49,5.02]
[1734439759018,2.2079,226.5,226.49,5.02]
[1734439760914,2.4,226.56,226.49,5.02]
[1734439761118,2.2078,226.51,226.49,5.02]
[1734439761413,11.72980004,226.6,226.49,5.02]
[1734439761619,2.4,226.59,226.49,5.02]
[1734439761810,2.2076,226.54,226.49,5.02]
[1734439762014,2.4,226.59,226.5,2.2079]
[1734439762215,2.2075,226.54,226.5,2.2079]
[1734439763017,2.2076,226.53,226.5,2.2079]
[1734439763215,2.2076,226.53,226.49,5.02]
[1734439763521,12.68760004,226.54,226.49,5.02]
[1734439763722,11.72980004,226.6,226.49,5.02]
[1734439763723,2.2079,226.5,226.49,5.02]
[1734439764322,2.2079,226.5,226.49,2.8044]
[1734439764517,2.2086,226.43,226.4,1.4805]
[1734439764715,11.72980004,226.6,226.4,1.4805]
[1734439764716,2.4,226.47,226.4,1.4805]
[1734439765023,2.4,226.47,226.4,3.6893]
[1734439765418,2.4,226.47,226.38,2.209]
[1734439765618,2.4,226.47,226.38,5.43]
[1734439765619,10.28760004,226.45,226.38,5.43]
[1734439766118,2.4,226.47,226.38,5.43]
[1734439766919,2.2084,226.45,226.39,2.2088]
[1734439767120,2.2084,226.45,226.38,5.43]
[1734439767320,2.4,226.47,226.38,5.43]
[1734439768123,2.2083,226.46,226.38,5.43]
[1734439768319,2.4,226.47,226.38,5.43]
[1734439768523,2.2084,226.45,226.38,7.6389]
[1734439768726,2.4,226.47,226.38,5.43]
[1734439769125,2.4,226.47,226.39,2.2089]
[1734439769329,2.4,226.47,226.38,5.43]
[1734439769330,2.4,226.47,226.38,7.83]
[1734439769527,2.4,226.47,226.39,1.427]
[1734439770230,2.2083,226.46,226.42,2.2085]
[1734439770430,10.28760004,226.57,226.42,10.28760004]
[1734439770625,12.68760004,226.57,226.43,5.4741]
[1734439771236,2.2077,226.52,226.43,5.4741]
[1734439771630,2.2077,226.52,226.47,2.2081]
[1734439772031,2.2079,226.5,226.43,5.4741]
[1734439772633,2.2079,226.5,226.45,2.2082]
[1734439772931,2.2079,226.5,226.43,5.4741]
[1734439773232,10.28760004,226.54,226.43,5.4741]
[1734439773738,10.28760004,226.54,226.43,3.0741]
[1734439774033,2.2082,226.47,226.43,3.0741]
[1734439774627,2.2084,226.45,226.43,1.5726]
[1734439775028,2.4,226.5,226.39,1.427]
[1734439775633,2.207,226.6,226.46,10.28760004]
[1734439775931,5.17616696,226.66,226.52,10.28760004]
[1734439776237,5.17616696,226.66,226.58,2.207]
[1734439777033,2.2067,226.62,226.53,3.8183]
[1734439777539,5.17616696,226.66,226.58,2.2071]
[1734439777731,5.17616696,226.66,226.53,3.8183]
[1734439777928,2.2069,226.61,226.56,2.2072]
[1734439779134,5.17616696,226.66,226.53,3.8183]
[1734439779339,2.2069,226.6,226.55,2.2074]
[1734439779541,5.17616696,226.66,226.53,1.4183]
[1734439779741,2.207,226.59,226.54,2.2074]
[1734439780638,5.17616696,226.66,226.53,1.4183]
[1734439782436,2.2067,226.62,226.57,2.2072]
[1734439784239,2.2067,226.62,226.58,2.207]
[1734439786237,2.2067,226.62,226.57,2.2071]
[1734439787943,5.17616696,226.66,226.53,1.4183]
[1734439788138,2.2064,226.65,226.56,2.2072]
[1734439788446,5.17616696,226.66,226.57,1.5638]
[1734439789148,2.2065,226.64,226.6,2.2068]
[1734439789443,5.17616696,226.66,226.57,1.5638]
[1734439791050,2.2065,226.64,226.57,1.5638]
[1734439792351,2.2065,226.64,226.6,2.2068]
[1734439792544,2.2066,226.63,226.6,2.2068]
[1734439792744,2.2066,226.63,226.6,7.5468]
[1734439793145,5.17616696,226.66,226.6,7.5468]
[1734439793146,5.17616696,226.66,226.6,5.34]
[1734439793347,2.4,226.73,226.6,5.34]
[1734439793553,2.4,226.73,226.61,2.4]
[1734439794152,5.36895789,226.7,226.61,2.4]
[1734439794451,2.4,226.73,226.65,2.2063]
[1734439794753,2.4,226.73,226.61,2.4]
[1734439794754,2.4,226.73,226.62,1.5326]
[1734439794952,16.46459528,226.78,226.62,1.5326]
[1734439795149,2.4,226.77,226.62,1.5326]
[1734439795348,2.4,226.76,226.62,1.5326]
[1734439795550,5.22058558,226.71,226.62,1.5326]
[1734439795757,7.62058558,226.71,226.62,1.5326]
[1734439797661,7.62058558,226.71,226.61,2.2067]
[1734439797858,2.2061,226.68,226.61,2.2067]
[1734439798053,7.62058558,226.71,226.61,2.2067]
[1734439798457,2.2063,226.66,226.61,2.2067]
[1734439798852,2.2063,226.66,226.62,2.2066]
[1734439800055,35.145162,226.82,226.63,10.28122514]
[1734439800056,2.2057,226.72,226.63,10.28122514]
[1734439800260,2.4,226.76,226.64,2.4]
[1734439800659,10.28122514,226.78,226.69,2.2059]
[1734439800660,2.4,226.77,226.69,2.2059]
[1734439801562,2.4,226.77,226.7,2.2059]
[1734439802457,2.2056,226.74,226.7,2.2059]
[1734439802659,5.19602531,226.75,226.66,1.4292]
[1734439802863,2.2058,226.72,226.66,1.4292]
[1734439803453,2.2058,226.72,226.68,2.206]
[1734439803968,5.26594837,226.88,226.71,10.28122514]
[1734439804163,10.28122514,226.95,226.81,10.28122514]
[1734439804362,2.2042,226.88,226.81,2.2048]
[1734439804561,5.19019839,226.89,226.8,2.4]
[1734439804862,12.68122514,226.95,226.8,2.4]
[1734439805063,2.204,226.9,226.81,2.9813]
[1734439805365,12.68122514,226.95,226.81,2.9813]
[1734439805565,7.08716731,226.85,226.84,2.2045]
[1734439805867,1.4426,227.03,226.84,10.28122514]
[1734439805868,10.28122514,226.98,226.84,10.28122514]
[1734439806060,308.8263115,227.35,226.9,10.28122514]
[1734439806261,1.4426,227.12,226.96,10.28122514]
[1734439806467,10.28122514,227.1,226.97,3.9268]
[1734439806663,10.28122514,227.1,226.98,2.4]
[1734439806867,63.7,227.3,226.97,1.5268]
[1734439806868,10.28122514,227.04,226.97,1.5268]
[1734439807569,10.28122514,227.04,226.97,3.73]
[1734439807958,10.28122514,227.04,226.97,1.5268]
[1734439808469,10.28122514,227.04,226.92,5.31516707]
[1734439808669,10.28122514,227.07,226.93,2.4]
[1734439808871,10.28122514,227.07,226.93,3.9707]
[1734439809169,2.2024,227.06,226.99,2.203]
[1734439809470,10.28122514,227.07,226.98,2.4]
[1734439809669,2.4,227.09,226.94,1.4469]
[1734439809670,2.2024,227.06,226.97,2.2032]
[1734439809872,10.28122514,227.09,226.98,2.4]
[1734439810067,16.4053415,227.1,226.97,2.2032]
[1734439810267,2.2024,227.06,226.98,2.2031]
[1734439810968,2.2024,227.06,226.97,2.4]
[1734439810969,2.2022,227.08,227.0,2.2029]
[1734439811371,2.2023,227.07,226.99,2.203]
[1734439812063,2.2022,227.08,227.0,2.2029]
[1734439812867,2.2023,227.07,227.0,2.2029]
[1734439813067,2.2023,227.07,227.0,7.9429]
[1734439813266,2.2023,227.07,227.0,5.74]
[1734439813664,2.4,227.1,227.0,5.74]
[1734439814270,16.4053415,227.07,227.0,5.74]
[1734439814464,2.2029,227.02,227.0,5.74]
[1734439814867,16.4053415,227.07,227.0,5.74]
[1734439815065,2.2027,227.03,227.0,5.74]
[1734439815971,2.2026,227.05,227.0,5.74]
[1734439816473,16.4053415,227.07,227.0,5.74]
[1734439816668,18.8053415,227.07,227.0,5.74]
[1734439818466,2.2027,227.03,227.0,5.74]
[1734439819971,2.4,227.06,227.0,5.74]
[1734439820269,2.4,227.09,227.0,5.74]
[1734439821973,2.2026,227.05,227.0,5.74]
[1734439824272,2.4,227.09,227.0,5.74]
[1734439824977,18.9053415,227.11,227.0,5.74]
[1734439825174,16.4053415,227.11,227.0,5.74]
[1734439825376,2.2026,227.04,227.0,5.74]
[1734439826178,2.2026,227.04,227.0,7.9429]
[1734439826384,2.5,227.1,227.0,5.74]
[1734439826572,2.2022,227.08,227.0,5.74]
[1734439826776,2.5,227.13,227.01,2.5]
[1734439827278,2.2024,227.06,227.01,4.7028]
[1734439827673,2.5,227.13,227.0,5.74]
[1734439829077,2.2025,227.05,227.0,5.74]
[1734439829782,2.5,227.13,227.01,2.2028]
[1734439829982,10.2501331,227.12,227.01,2.2028]
[1734439830383,2.2023,227.06,227.02,2.2027]
[1734439831078,10.2501331,227.12,227.0,5.74]
[1734439831375,12.7501331,227.12,227.0,5.74]
[1734439831577,2.2026,227.03,227.0,5.74]
[1734439831774,12.7501331,227.12,227.0,5.74]
[1734439832682,2.2021,227.09,227.0,5.74]
[1734439832882,12.7501331,227.12,227.0,5.74]
[1734439833280,2.2021,227.09,227.0,5.74]
[1734439833478,12.7501331,227.12,227.0,5.74]
[1734439833685,12.7501331,227.12,227.02,2.2026]
[1734439833981,2.5,227.11,227.0,5.74]
[1734439834387,2.5,227.11,227.01,2.2028]
[1734439835487,2.2025,227.05,227.01,2.2028]
[1734439836592,10.2501331,227.12,227.0,5.74]
[1734439836790,2.5,227.14,227.02,10.2501331]
[1734439837085,2.5,227.14,227.03,1.5296]
[1734439837789,2.2019,227.11,227.04,2.2025]
[1734439837989,2.5,227.14,227.04,2.2025]
[1734439838488,18.65168455,227.2,227.03,1.5296]
[1734439838691,10.2501331,227.17,227.04,1.4145]
[1734439839084,10.2501331,227.14,227.04,3.617]
[1734439839290,10.2501331,227.14,227.04,9.797]
[1734439839483,2.2021,227.09,227.04,9.797]
[1734439839885,12.7501331,227.14,227.04,7.5945]
[1734439840086,2.2022,227.08,227.04,7.5945]
[1734439840999,2.2024,227.05,227.04,6.18]
[1734439843487,2.2024,227.05,226.95,1.459]
[1734439843488,10.2501331,227.05,226.95,1.459]
[1734439843693,2.2032,226.98,226.95,1.459]
[1734439843895,2.5,227.03,226.95,1.459]
[1734439844697,2.5,227.03,226.95,4.679]
[1734439844896,2.2033,226.96,226.95,4.679]
[1734439848199,2.2033,226.96,226.95,3.22]
[1734439851199,2.5,227.0,226.95,3.22]
[1734439851393,10.2501331,227.03,226.96,3.26950414]
[1734439851598,2.46,227.03,226.95,3.22]
[1734439851798,2.2028,227.02,226.97,2.2032]
[1734439852097,2.46,227.03,226.95,3.22]
[1734439852495,2.2031,226.99,226.95,3.22]
[1734439852704,2.46,227.03,226.95,3.22]
[1734439853001,2.2029,227.01,226.95,3.22]
[1734439853304,2.46,227.03,226.95,3.22]
[1734439853798,2.2031,226.99,226.95,3.22]
[1734439854005,2.46,227.03,226.96,2.2032]
[1734439854195,9.62496709,227.12,226.95,3.22]
[1734439854397,4.4029,227.16,226.96,3.26775567]
[1734439854398,10.2501331,227.09,226.96,3.26775567]
[1734439854599,10.2501331,227.09,226.97,3.26775567]
[1734439854804,2.2027,227.03,226.95,3.22]
[1734439855006,2.2027,227.03,226.96,3.26638818]
[1734439855208,2.2027,227.03,226.95,3.22]
[1734439855406,5.39723351,227.08,226.96,3.26593894]
[1734439855704,12.7101331,227.06,226.95,3.22]
[1734439856096,2.203,227.0,226.96,2.2033]
[1734439856807,10.2501331,227.03,226.95,3.22]
[1734439857401,2.2032,226.97,226.95,3.22]
[1734439858404,10.2501331,227.03,226.95,3.22]
[1734439858710,2.2031,226.99,226.95,5.4234]
[1734439858905,10.2501331,227.03,226.95,3.22]
[1734439859405,2.2032,226.98,226.95,3.22]
[1734439859905,2.203,226.99,226.95,5.4233]
[1734439860503,10.2501331,227.03,226.95,5.4233]
[1734439860705,2.2033,226.96,226.95,3.22]
[1734439861103,2.46,227.01,226.95,3.22]
[1734439862106,6.56536405,226.99,226.95,3.22]
[1734439862307,2.46,227.02,226.95,3.22]
[1734439862508,6.56536405,226.99,226.95,3.22]
[1734439862701,6.56536405,226.97,226.95,3.22]
[1734439862901,2.2033,226.96,226.95,3.22]
[1734439863108,6.56536405,226.99,226.95,3.22]
[1734439863412,2.2031,226.98,226.95,3.22]
[1734439863708,2.2031,226.98,226.95,5.4234]
[1734439863914,5.39723351,227.08,226.95,5.4234]
[1734439863915,6.56536405,227.04,226.96,6.56536405]
[1734439864112,6.56536405,227.04,226.95,3.22]
[1734439864311,6.56536405,227.04,226.95,9.78536405]
[1734439865009,2.2028,227.02,226.98,2.203]
[1734439865207,2.2028,227.02,226.99,1.4692]
[1734439865609,2.46,227.07,227.03,2.2026]
[1734439865610,2.2023,227.07,227.03,2.2026]
[1734439869211,2.2023,227.06,227.03,2.2026]
[1734439870515,2.2027,227.03,227.0,1.5708]
[1734439870812,10.25090184,227.08,227.0,1.5708]
[1734439871013,10.25090184,227.08,226.99,1.4692]
[1734439871713,2.46,227.12,226.99,1.4692]
[1734439871917,10.25090184,227.09,226.99,1.4692]
[1734439872414,2.2024,227.06,226.99,1.4692]
[1734439872608,10.25090184,227.09,226.99,1.4692]
[1734439873015,2.2023,227.06,227.01,2.2028]
[1734439873206,10.25090184,227.09,227.01,2.2028]
[1734439873911,2.2025,227.05,227.01,2.2028]
[1734439874113,2.2025,227.05,227.02,2.2027]
[1734439874909,2.2021,227.09,227.05,2.2024]
[1734439875309,2.2021,227.09,227.02,3.21]
[1734439875513,2.2022,227.08,227.02,3.21]
[1734439875914,10.25090184,227.12,227.05,2.2024]
[1734439876216,10.25090184,227.12,227.02,3.21]
[1734439876412,10.25090184,227.09,227.02,3.21]
[1734439876811,2.2026,227.03,227.02,3.21]
[1734439879318,5.33227982,227.15,227.02,2.30283269]
[1734439879518,5.33227982,227.15,227.05,2.2024]
[1734439879519,10.25090184,227.13,227.05,2.2024]
[1734439880616,2.46,227.12,227.03,2.2025]
[1734439881017,2.2022,227.08,227.02,2.30283269]
[1734439881214,4.3995,227.33,227.02,12.55373453]
[1734439881419,5.18544909,227.19,227.03,1.5447]
[1734439881617,15.43635093,227.19,227.03,1.5447]
[1734439881820,10.25090184,227.16,227.03,1.5447]
[1734439882017,10.25090184,227.16,227.04,2.5]
[1734439882211,5.18544909,227.19,227.03,1.5447]
[1734439882212,10.25090184,227.13,227.03,1.5447]
[1734439882418,2.2019,227.11,227.05,2.2023]
[1734439882618,2.2019,227.11,227.03,1.5447]
[1734439883117,10.25090184,227.13,227.03,1.5447]
[1734439883318,2.202,227.1,227.03,1.5447]
[1734439883515,10.25090184,227.13,227.03,1.5447]
[1734439883817,10.25090184,227.13,227.02,2.30283269]
[1734439883818,10.25090184,227.07,227.02,2.30283269]
[1734439884515,10.25090184,227.1,227.02,2.30283269]
[1734439884713,10.25090184,227.13,227.02,4.80283269]
[1734439884913,2.5,227.14,227.02,4.80283269]
[1734439885722,2.2017,227.13,227.02,4.80283269]
[1734439886424,2.2018,227.12,227.07,2.2022]
[1734439887718,10.25090184,227.15,227.07,2.2022]
[1734439888425,2.2018,227.12,227.07,2.2022]
[1734439888923,10.25090184,227.15,227.02,4.80283269]
[1734439889126,2.2019,227.11,227.03,2.5]
[1734439889620,2.2019,227.11,227.04,2.2025]
[1734439889825,2.2019,227.11,227.03,2.5]
[1734439890019,2.2019,227.11,227.05,2.2024]
[1734439890225,2.2019,227.11,227.03,2.5]
[1734439891125,2.2019,227.11,227.06,2.2023]
[1734439894620,2.202,227.1,227.06,2.2023]
[1734439895428,10.25090184,227.15,227.05,2.2024]
[1734439895632,2.2021,227.09,227.05,2.2024]
[1734439896435,2.2022,227.08,227.03,4.7026]
[1734439896728,10.25090184,227.15,227.02,4.80283269]
[1734439897728,2.2019,227.11,227.06,2.2023]
[1734439897926,6.55926188,227.1,227.06,2.2023]
[1734439899135,8.76126188,227.1,227.06,2.2023]
[1734439899336,6.55926188,227.1,227.06,2.2023]
[1734439899933,6.55926188,227.12,227.08,2.2021]
[1734439900133,6.55926188,227.12,227.03,6.55926188]
[1734439900931,6.55926188,227.12,227.1,2.2019]
[1734439901438,6.55926188,227.12,227.02,4.80283269]
[1734439901637,6.55926188,227.08,227.02,4.80283269]
[1734439902239,6.55926188,227.1,227.02,11.36209457]
[1734439902437,6.55926188,227.1,227.07,2.2022]
[1734439903038,6.55926188,227.1,227.08,2.2021]
[1734439903740,8.76106188,227.12,227.08,2.2021]
[1734439904141,308.8263115,227.43,227.11,6.55926188]
[1734439904438,308.8263115,227.43,227.12,3.0131]
[1734439904439,6.55926188,227.22,227.12,3.0131]
[1734439904638,6.55926188,227.22,227.17,2.2012]
[1734439904842,2.5,227.23,227.12,3.0131]
[1734439904843,9.05926188,227.23,227.12,3.0131]
[1734439905138,2.5,227.22,227.05,1.4908]
[1734439905337,6.55926188,227.19,227.06,1.5102]
[1734439905536,2.5,227.22,227.09,6.55926188]
[1734439905738,2.2015,227.15,227.08,2.2021]
[1734439906036,10.24353792,227.21,227.07,5.30567304]
[1734439906241,2.5,227.2,227.11,10.24353792]
[1734439906434,2.5,227.19,227.11,10.24353792]
[1734439906632,2.5,227.2,227.11,10.24353792]
[1734439906833,2.5,227.2,227.08,10.24353792]
[1734439907439,2.5,227.2,227.11,10.24353792]
[1734439907639,10.24353792,227.26,227.11,10.24353792]
[1734439907841,2.5,227.25,227.11,10.24353792]
[1734439908037,2.201,227.2,227.14,2.2015]
[1734439908240,2.201,227.2,227.11,10.24353792]
[1734439908241,2.5,227.19,227.11,10.24353792]
[1734439908638,2.201,227.2,227.11,10.24353792]
[1734439908844,10.24353792,227.26,227.11,10.24353792]
[1734439909035,10.24353792,227.23,227.08,10.24353792]
[1734439909240,10.24353792,227.2,227.07,5.30567304]
[1734439909643,2.5,227.19,227.07,5.30567304]
[1734439909837,10.24353792,227.2,227.07,5.30567304]
[1734439910042,2.5,227.19,227.07,5.30567304]
[1734439910437,2.5,227.19,227.05,14.03433792]
[1734439910643,10.24353792,227.17,227.05,2.3]
[1734439911046,2.58,227.16,227.06,2.2023]
[1734439911347,10.24353792,227.17,227.06,2.2023]
[1734439911546,2.2018,227.12,227.07,2.2022]
[1734439911746,2.2018,227.12,227.05,2.3]
[1734439911942,2.58,227.16,227.05,2.3]
[1734439912642,2.58,227.15,227.05,2.3]
[1734439912846,2.2021,227.09,227.05,2.3]
[1734439913046,4.7821,227.09,227.05,2.3]
[1734439913247,2.58,227.09,227.05,2.3]
[1734439913844,2.2023,227.06,227.05,2.3]
[1734439914140,4.7823,227.06,227.05,2.3]
[1734439915142,2.58,227.06,226.97,10.24353792]
[1734439915342,2.58,227.06,226.94,11.70503792]